{"text_format":"1","workbook":"xlsx","n_sheets":2,"sheets":["ใบส่งคืนชาก P1","ใบส่งคืนชาก P2"],"not_rendered":{"charts":0,"images":6,"macros":1,"external_links":0,"defined_names":2,"comments":0,"pivot_tables":0},"unopened":[],"bounds":{"document_bytes":16777216,"sheet_cells":100000,"rows_first":2000,"rows_last":500,"rows_between":2000,"halvings":0,"cell_chars":16384,"cell_head_chars":4096},"cells_cut":0,"cells_raw":0,"read":"whole","date_system":"1900"}

{"sheet":"ใบส่งคืนชาก P1","index":0,"n_rows":50,"n_cols":93,"rows_kept":50,"cut":false,"hidden":false,"merged":[[15,3,15,8],[8,79,8,85],[11,9,11,27],[11,28,11,36],[7,1,7,2],[9,41,9,48],[10,3,10,8],[10,9,10,27],[10,1,10,2],[12,9,12,27],[12,28,12,36],[12,41,12,48],[13,3,13,8],[13,9,13,27],[13,28,13,36],[13,41,13,48],[14,3,14,8],[14,9,14,27],[14,28,14,36],[14,41,14,48],[15,9,15,27],[15,28,15,36],[15,41,15,48],[1,37,1,42],[9,49,9,52],[9,3,9,8],[9,9,9,27],[9,28,9,36],[11,41,11,48],[5,6,5,18],[2,52,2,59],[1,52,1,59],[2,15,2,44],[7,49,7,54],[10,49,10,52],[9,53,9,54],[9,55,9,60],[10,53,10,54],[5,27,5,38],[10,28,10,36],[10,41,10,48],[11,3,11,8],[10,55,10,60],[16,3,16,8],[7,55,7,60],[8,53,8,54],[8,55,8,60],[8,37,8,38],[8,1,8,2],[7,28,7,36],[7,37,7,48],[8,3,8,36],[7,3,7,8],[7,9,7,27],[16,9,16,27],[16,28,16,36],[16,41,16,48],[9,1,9,2],[14,1,14,2],[14,49,14,52],[14,53,14,54],[14,55,14,60],[15,1,15,2],[15,49,15,52],[12,53,12,54],[12,55,12,60],[12,3,12,8],[41,55,41,60],[40,49,40,52],[40,53,40,54],[42,49,42,52],[42,53,42,54],[42,55,42,60],[11,1,11,2],[11,49,11,52],[16,53,16,54],[16,55,16,60],[16,1,16,2],[16,49,16,52],[15,53,15,54],[15,55,15,60],[12,1,12,2],[12,49,12,52],[11,53,11,54],[11,55,11,60],[13,1,13,2],[13,49,13,52],[13,53,13,54],[13,55,13,60],[40,55,40,60],[33,55,33,60],[47,1,47,10],[47,11,47,21],[47,23,47,33],[47,34,47,44],[47,49,47,60],[33,1,33,2],[34,1,34,2],[35,1,35,2],[36,1,36,2],[44,1,44,10],[37,1,37,2],[39,1,39,2],[40,1,40,2],[41,1,41,2],[44,11,44,21],[44,23,44,33],[44,34,44,44],[44,49,44,60],[42,1,42,2],[39,55,39,60],[35,53,35,54],[35,55,35,60],[36,49,36,52],[41,49,41,52],[41,53,41,54],[28,52,28,59],[36,55,36,60],[21,11,21,21],[18,11,18,21],[18,1,18,10],[21,1,21,10],[18,23,18,33],[18,49,18,60],[21,23,21,33],[21,49,21,60],[27,52,27,59],[18,34,18,44],[21,34,21,44],[38,1,38,2],[38,49,38,52],[38,53,38,54],[38,55,38,60],[37,49,37,52],[37,53,37,54],[37,55,37,60],[34,55,34,60],[34,3,34,36],[34,37,34,38],[28,15,28,44],[27,37,27,42],[39,49,39,52],[39,53,39,54],[33,3,33,8],[33,9,33,27],[33,28,33,36],[33,37,33,48],[33,49,33,54],[36,3,36,8],[36,9,36,27],[36,28,36,36],[36,41,36,48],[37,3,37,8],[37,9,37,27],[37,28,37,36],[37,41,37,48],[36,53,36,54],[34,53,34,54],[35,3,35,8],[35,9,35,27],[35,28,35,36],[35,41,35,48],[35,49,35,52],[42,3,42,8],[42,9,42,27],[42,28,42,36],[42,41,42,48],[38,3,38,8],[38,9,38,27],[38,28,38,36],[38,41,38,48],[39,3,39,8],[39,9,39,27],[39,28,39,36],[39,41,39,48],[40,3,40,8],[40,9,40,27],[40,28,40,36],[40,41,40,48],[41,3,41,8],[41,9,41,27],[41,28,41,36],[41,41,41,48]]}
[]
[null,null,null,null,null,null,"บริษัท วโรปกรณ์ จำกัด (มหาชน)",null,null,null,null,null,null,null,null,null,null,null,null,null,null,null,null,null,null,null,null,null,null,null,null,null,null,null,"เล่มที่ :",null,null,null,null,null,null,null,null,null,null,null,null,null,null,null,null,"เลขที่ :","ENG-09-69-002"]
[null,null,null,null,null,null,null,null,null,null,null,null,null,null,null,"ใบส่งคืนซากอะไหล่",null,null,null,null,null,null,null,null,null,null,null,null,null,null,null,null,null,null,null,null,null,null,null,null,null,null,null,null,null,null,null,null,null,null,null,"ฝ่ายที่ส่งคืนระบุ","(X-XX-XX-XXX)\n(ฝ่าย-เดือน-พ.ศ.-ลำดับ)"]
[null,"ส่งคืนอะไหล่",null,null,null,null,null,null,"o เสีย",null,null,null,null,null,"o ซ่อม/นำกลับมาใช้ใหม่, PR เลขที่ …………………….",null,null,null,null,null,null,null,null,null,null,null,null,null,null,null,null,null,null,null,null,null,null,"o ของดี",null,null,null,null,null,null,"o เคลมภายใน...............วัน",null,null,null,null,null,null,null,null,null,null,null,null,null,null,null,null,null,null,null,null,null,{"$f":"NOW()","v":"2026-09-02T17:47:26.070"},{"$f":"CO19+'ใบส่งคืนชาก P2'!CO19","v":2},"Chartchai C.",{"$f":"G6","v":"CTE6"}]
[null,"ชื่อผู้ส่งคืน",null,null,null,null,"Chartchai Chomnansarayut",null,null,null,null,null,null,null,null,null,null,null,null,null,null,null,null,null,null,"ฝ่าย/แผนก",null,null,"วิศวซ่อมบำรุง",null,null,null,null,null,null,null,null,null,null,null,null,null,null,null,null,null,"เบอร์โทรศัพท์ติดต่อ",null,"084-7744452",null,null,null,null,null,null,null,null,null,null,null,null,null,null,null,null,null,null,null,null,null,null,null,null," "]
[null,"เครื่องจักร",null,null,null,null,"CTE6",null,null,null,null,null,null,null,null,null,null,null,null,null,null,null,null,null,null,"ใบเบิกเลขที่"," ",26090002]
[]
[null,"ลำดับ",null,"รหัสสินค้า",null,null,null,null,null,"ชื่ออะไหล่",null,null,null,null,null,null,null,null,null,null,null,null,null,null,null,null,null,null,"อาการที่เสีย",null,null,null,null,null,null,null,null,"ซาก",null,null,null,null,null,null,null,null,null,null,null,"จำนวนส่งคืน",null,null,null,null,null,"พื้นที่จัดเก็บ",null,null,null,null,null,null,null,null,null,null,null,null,null,null,null,null,null,null,null,null,null,null,null,"Enter Location to Save As File Below:"]
[null,null,null,"(ติดป้ายชี้บ่งบนซากอะไหล่ทุกชนิด, หากอะไหล่ชิ้นเล็กให้บรรจุใส่ถุงก่อนส่งคืน)",null,null,null,null,null,null,null,null,null,null,null,null,null,null,null,null,null,null,null,null,null,null,null,null,null,null,null,null,null,null,null,null,null,"มี",null,"ไม่มี",null,null,null,null,null,null,null,null,null,null,null,null,null,"หน่วย",null,null,null,null,null,null,null,null,null,null,null,null,null,null,null,null,null,null,null,null,null,null,null,null,null,"C:\\Users\\Narongrit\\Desktop\\Backup FM-R-0006"]
[null,1,null,{"$f":"TEXT(CC10,)","v":"HC42"},null,null,null,null,null,{"$f":"TEXT(CE10,)","v":"Heater Rod (SIC)L1060 x 400(Hot zone)x OD32mm.,0.66 Ohm,\"Starbar\",12R-SIC"},null,null,null,null,null,null,null,null,null,null,null,null,null,null,null,null,null,null,null,null,null,null,null,null,null,null,null,null,null,null,null,null,null,null,null,null,null,null,null,{"$f":"IF(CF10=\"\",\"\",CF10)","v":3},null,null,null,{"$f":"TEXT(CG10,)","v":"ชิ้น"},null,null,null,null,null,null,null,null,null,null,null,null,null,null,null,null,null,null,null,null,null,null,null,null,1,null,"HC42",null,"Heater Rod (SIC)L1060 x 400(Hot zone)x OD32mm.,0.66 Ohm,\"Starbar\",12R-SIC",3,"ชิ้น",null,null,false,true,null,null,null,{"$f":"COUNT(CF10)","v":1}]
[null,2,null,"DW31",null,null,null,null,null,"Semi-Conductor Fuse 125A,500Vac,120kA,gl-gC ,Size 00(SQ) ,125NHG00B,EATON-Bussmann,Ref. RS 703-8655",null,null,null,null,null,null,null,null,null,null,null,null,null,null,null,null,null,null,null,null,null,null,null,null,null,null,null,null,null,null,null,null,null,null,null,null,null,null,null,3,null,null,null,{"$f":"TEXT(CG11,)","v":"ชิ้น"},null,null,null,null,null,null,null,null,null,null,null,null,null,null,null,null,null,null,null,null,null,null,null,null,2,null,"DW31",null,"Semi-Conductor Fuse 125A,500Vac,120kA,gl-gC ,Size 00(SQ) ,125NHG00B,EATON-Bussmann,Ref. RS 703-8655",3,"ชิ้น",null,null,false,true,null,null,null,{"$f":"COUNT(CF11)","v":1}]
[null,3,null,"",null,null,null,null,null,"",null,null,null,null,null,null,null,null,null,null,null,null,null,null,null,null,null,null,null,null,null,null,null,null,null,null,null,null,null,null,null,null,null,null,null,null,null,null,null,"",null,null,null,"",null,null,null,null,null,null,null,null,null,null,null,null,null,null,null,null,null,null,null,null,null,null,null,null,3,null,null,null,null,null,null,null,null,false,false,null,null,null,{"$f":"COUNT(CF12)","v":0}]
[null,4,null,"",null,null,null,null,null,"",null,null,null,null,null,null,null,null,null,null,null,null,null,null,null,null,null,null,null,null,null,null,null,null,null,null,null,null,null,null,null,null,null,null,null,null,null,null,null,"",null,null,null,"",null,null,null,null,null,null,null,null,null,null,null,null,null,null,null,null,null,null,null,null,null,null,null,null,4,null,null,null,null,null,null,null,null,false,false,null,null,null,0]
[null,5,null,"",null,null,null,null,null,"",null,null,null,null,null,null,null,null,null,null,null,null,null,null,null,null,null,null,null,null,null,null,null,null,null,null,null,null,null,null,null,null,null,null,null,null,null,null,null,{"$f":"IF(CF14=\"\",\"\",CF14)","v":""},null,null,null,"",null,null,null,null,null,null,null,null,null,null,null,null,null,null," ",null,null,null,null,null,null,null,null,null,5,null,null,null,null,null,null,null,null,false,false,null,null,null,0]
[null,6,null,"",null,null,null,null,null,"",null,null,null,null,null,null,null,null,null,null,null,null,null,null,null,null,null,null,null,null,null,null,null,null,null,null,null,null,null,null,null,null,null,null,null,null,null,null,null,"",null,null,null,"",null,null,null,null,null,null,null,null,null,null,null,null,null,null,null,null,null,null,null,null,null,null,null,null,6,null,null,null,null,null,null,null,null,false,false,null,null,null,0]
[null,7,null,"",null,null,null,null,null,"",null,null,null,null,null,null,null,null,null,null,null,null,null,null,null,null,null,null,null,null,null,null,null,null,null,null,null,null,null,null,null,null,null,null,null,null,null,null,null,"",null,null,null,"",null,null,null,null,null,null,null,null,null,null,null,null,null,null,null,null,null,null,null,null,null,null,null,null,7,null,null,null,null,null,null,null,null,false,false,null,null,null,0]
[null,8,null,"",null,null,null,null,null,"",null,null,null,null,null,null,null,null,null,null,null,null,null,null,null,null,null,null,null,null,null,null,null,null,null,null,null,null,null,null,null,null,null,null,null,null,null,null,null,"",null,null,null,"",null,null,null,null,null,null,null,null,null,null,null,null,null,null,null,null,null,null,null,null,null,null,null,null,8,null,null,null,null,null,null,null,null,{"$f":"IF(AX17=\"\",FALSE,TRUE)","v":false},{"$f":"IF(AND(D17<>\"\",AX17=\"\"),TRUE,FALSE)","v":false},null,null,null,0]
[]
[null,"ผู้ส่ง",null,null,null,null,null,null,null,null,null,"ผู้อนุมัติส่ง",null,null,null,null,null,null,null,null,null,null,null,"ผู้รับ",null,null,null,null,null,null,null,null,null,null,"ผู้อนุมัติรับ",null,null,null,null,null,null,null,null,null,null,null,null,null,null,"ผู้ตรวจสอบ",null,null,null,null,null,null,null,null,null,null,null,null,null,null,null,null,null,null,null,null,null,null,null,null,null,null,null,null,null,null,null,null,null,null,null,null,null,null,null,null,null,null,{"$f":"SUM(CO10:CO17)","v":2}]
[]
[]
[null,null,null,null,null,null,null,null,null,null,null,"(Leader, ผช., ผจก.)",null,null,null,null,null,null,null,null,null,null,null,"(พนักงานสโตร์)",null,null,null,null,null,null,null,null,null,null,"(หัวหน้าแผนกสโตร์)",null,null,null,null,null,null,null,null,null,null,null,null,null,null,"(บัญชี)"]
[null,"วันที่",null,null,null,null,null,null,null,null,null,"วันที่",null,null,null,null,null,null,null,null,null,null,null,"วันที่",null,null,null,null,null,null,null,null,null,null,"วันที่",null,null,null,null,null,null,null,null,null,null,null,null,null,null,"วันที่"]
[null,"FM-R-0006  REV.00"]
[]
[]
[]
[null,null,null,null,null,null,"บริษัท วโรปกรณ์ จำกัด (มหาชน)",null,null,null,null,null,null,null,null,null,null,null,null,null,null,null,null,null,null,null,null,null,null,null,null,null,null,null,"เล่มที่ :",null,null,null,null,null,null,null,null,null,null,null,null,null,null,null,null,"เลขที่ :",{"$f":"BA2","v":"ENG-09-69-002"},null,null,null,null,null,"=BG2"]
[null,null,null,null,null,null,null,null,null,null,null,null,null,null,null,"ใบส่งคืนซากอะไหล่",null,null,null,null,null,null,null,null,null,null,null,null,null,null,null,null,null,null,null,null,null,null,null,null,null,null,null,null,null,null,null,null,null,null,null,"ฝ่ายที่ส่งคืนระบุ","(X-XX-XX-XXX)\n(ฝ่าย-เดือน-พ.ศ.-ลำดับ)"]
[null,"ส่งคืนอะไหล่",null,null,null,null,null,null,"o เสีย",null,null,null,null,null,"o ซ่อม/นำกลับมาใช้ใหม่, PR เลขที่ …………………….",null,null,null,null,null,null,null,null,null,null,null,null,null,null,null,null,null,null,null,null,null,null,"o ของดี",null,null,null,null,null,null,"o เคลมภายใน...............วัน"]
[null,"ชื่อผู้ส่งคืน",null,null,null,null,{"$f":"G5","v":"Chartchai Chomnansarayut"},null,null,null,null,null,null,null,null,null,null,null,null,null,null,null,null,null,null,"ฝ่าย/แผนก",null,null,"วิศวซ่อมบำรุง",null,null,null,null,null,null,null,null,null,null,null,null,null,null,null,null,null,"เบอร์โทรศัพท์ติดต่อ",null,{"$f":"AW5","v":"084-7744452"}]
[null,"เครื่องจักร",null,null,null,null,{"$f":"G6","v":"CTE6"},null,null,null,null,null,null,null,null,null,null,null,null,null,null,null,null,null,null,"ใบเบิกเลขที่",null,{"$f":"AB6","v":26090002}]
[]
[null,"ลำดับ",null,"รหัสสินค้า",null,null,null,null,null,"ชื่ออะไหล่",null,null,null,null,null,null,null,null,null,null,null,null,null,null,null,null,null,null,"อาการที่เสีย",null,null,null,null,null,null,null,null,"ซาก",null,null,null,null,null,null,null,null,null,null,null,"จำนวนส่งคืน",null,null,null,null,null,"พื้นที่จัดเก็บ"]
[null,null,null,"(ติดป้ายชี้บ่งบนซากอะไหล่ทุกชนิด, หากอะไหล่ชิ้นเล็กให้บรรจุใส่ถุงก่อนส่งคืน)",null,null,null,null,null,null,null,null,null,null,null,null,null,null,null,null,null,null,null,null,null,null,null,null,null,null,null,null,null,null,null,null,null,"มี",null,"ไม่มี",null,null,null,null,null,null,null,null,null,null,null,null,null,"หน่วย"]
[null,{"$f":"B10","v":1},null,{"$f":"TEXT(D10,)","v":"HC42"},{"$f":"TEXT(D10,)","v":"HC42"},null,null,null,null,{"$f":"TEXT(J10,)","v":"Heater Rod (SIC)L1060 x 400(Hot zone)x OD32mm.,0.66 Ohm,\"Starbar\",12R-SIC"},null,null,null,null,null,null,null,null,null,null,null,null,null,null,null,null,null,null,{"$f":"TEXT(AC10,)","v":""},null,null,null,null,null,null,null,null,null,null,null,null,{"$f":"TEXT(AP10,)","v":""},null,null,null,null,null,null,null,{"$f":"AX10","v":3},null,null,null,{"$f":"TEXT(BB10,)","v":"ชิ้น"}]
[null,{"$f":"B11","v":2},null,{"$f":"TEXT(D11,)","v":"DW31"},{"$f":"TEXT(D11,)","v":"DW31"},null,null,null,null,{"$f":"TEXT(J11,)","v":"Semi-Conductor Fuse 125A,500Vac,120kA,gl-gC ,Size 00(SQ) ,125NHG00B,EATON-Bussmann,Ref. RS 703-8655"},null,null,null,null,null,null,null,null,null,null,null,null,null,null,null,null,null,null,{"$f":"TEXT(AC11,)","v":""},null,null,null,null,null,null,null,null,null,null,null,null,{"$f":"TEXT(AP11,)","v":""},null,null,null,null,null,null,null,{"$f":"AX11","v":3},null,null,null,{"$f":"TEXT(BB11,)","v":"ชิ้น"}]
[null,3,null,"","",null,null,null,null,"",null,null,null,null,null,null,null,null,null,null,null,null,null,null,null,null,null,null,"",null,null,null,null,null,null,null,null,null,null,null,null,"",null,null,null,null,null,null,null,"",null,null,null,""]
[null,4,null,"","",null,null,null,null,"",null,null,null,null,null,null,null,null,null,null,null,null,null,null,null,null,null,null,"",null,null,null,null,null,null,null,null,null,null,null,null,"",null,null,null,null,null,null,null,"",null,null,null,""]
[null,5,null,"","",null,null,null,null,"",null,null,null,null,null,null,null,null,null,null,null,null,null,null,null,null,null,null,"",null,null,null,null,null,null,null,null,null,null,null,null,"",null,null,null,null,null,null,null,"",null,null,null,""]
[null,6,null,"","",null,null,null,null,"",null,null,null,null,null,null,null,null,null,null,null,null,null,null,null,null,null,null,"",null,null,null,null,null,null,null,null,null,null,null,null,"",null,null,null,null,null,null,null,"",null,null,null,""]
[null,7,null,"","",null,null,null,null,"",null,null,null,null,null,null,null,null,null,null,null,null,null,null,null,null,null,null,"",null,null,null,null,null,null,null,null,null,null,null,null,"",null,null,null,null,null,null,null,"",null,null,null,""]
[null,8,null,"","",null,null,null,null,"",null,null,null,null,null,null,null,null,null,null,null,null,null,null,null,null,null,null,"",null,null,null,null,null,null,null,null,null,null,null,null,"",null,null,null,null,null,null,null,"",null,null,null,""]
[]
[null,"ผู้ส่ง",null,null,null,null,null,null,null,null,null,"ผู้อนุมัติส่ง",null,null,null,null,null,null,null,null,null,null,null,"ผู้รับ",null,null,null,null,null,null,null,null,null,null,"ผู้อนุมัติรับ",null,null,null,null,null,null,null,null,null,null,null,null,null,null,"ผู้ตรวจสอบ"]
[]
[]
[null,null,null,null,null,null,null,null,null,null,null,"(Leader, ผช., ผจก.)",null,null,null,null,null,null,null,null,null,null,null,"(พนักงานสโตร์)",null,null,null,null,null,null,null,null,null,null,"(หัวหน้าแผนกสโตร์)",null,null,null,null,null,null,null,null,null,null,null,null,null,null,"(บัญชี)"]
[null,"วันที่",null,null,null,null,null,null,null,null,null,"วันที่",null,null,null,null,null,null,null,null,null,null,null,"วันที่",null,null,null,null,null,null,null,null,null,null,"วันที่",null,null,null,null,null,null,null,null,null,null,null,null,null,null,"วันที่"]
[null,"FM-R-0006  REV.00"]

{"sheet":"ใบส่งคืนชาก P2","index":1,"n_rows":50,"n_cols":93,"rows_kept":50,"cut":false,"hidden":false,"merged":[[1,37,1,42],[1,52,1,59],[2,15,2,44],[2,52,2,59],[5,6,5,18],[5,27,5,38],[7,55,7,60],[8,1,8,2],[8,3,8,36],[8,37,8,38],[8,53,8,54],[8,55,8,60],[7,1,7,2],[7,3,7,8],[7,9,7,27],[7,28,7,36],[7,37,7,48],[7,49,7,54],[9,53,9,54],[9,55,9,60],[10,1,10,2],[10,3,10,8],[10,9,10,27],[10,28,10,36],[10,41,10,48],[10,49,10,52],[10,53,10,54],[10,55,10,60],[9,1,9,2],[9,3,9,8],[9,9,9,27],[9,28,9,36],[9,41,9,48],[9,49,9,52],[11,53,11,54],[11,55,11,60],[12,1,12,2],[12,3,12,8],[12,9,12,27],[12,28,12,36],[12,41,12,48],[12,49,12,52],[12,53,12,54],[12,55,12,60],[11,1,11,2],[11,3,11,8],[11,9,11,27],[11,28,11,36],[11,41,11,48],[11,49,11,52],[13,53,13,54],[13,55,13,60],[14,1,14,2],[14,3,14,8],[14,9,14,27],[14,28,14,36],[14,41,14,48],[14,49,14,52],[14,53,14,54],[14,55,14,60],[13,1,13,2],[13,3,13,8],[13,9,13,27],[13,28,13,36],[13,41,13,48],[13,49,13,52],[15,53,15,54],[15,55,15,60],[16,1,16,2],[16,3,16,8],[16,9,16,27],[16,28,16,36],[16,41,16,48],[16,49,16,52],[16,53,16,54],[16,55,16,60],[15,1,15,2],[15,3,15,8],[15,9,15,27],[15,28,15,36],[15,41,15,48],[15,49,15,52],[18,1,18,10],[18,11,18,21],[18,23,18,33],[18,34,18,44],[18,49,18,60],[21,1,21,10],[21,11,21,21],[21,23,21,33],[21,34,21,44],[21,49,21,60],[33,55,33,60],[34,1,34,2],[34,3,34,36],[34,37,34,38],[34,53,34,54],[34,55,34,60],[27,37,27,42],[27,52,27,59],[28,15,28,44],[28,52,28,59],[33,1,33,2],[33,3,33,8],[33,9,33,27],[33,28,33,36],[33,37,33,48],[33,49,33,54],[35,53,35,54],[35,55,35,60],[36,1,36,2],[36,3,36,8],[36,9,36,27],[36,28,36,36],[36,41,36,48],[36,49,36,52],[36,53,36,54],[36,55,36,60],[35,1,35,2],[35,3,35,8],[35,9,35,27],[35,28,35,36],[35,41,35,48],[35,49,35,52],[37,53,37,54],[37,55,37,60],[38,1,38,2],[38,3,38,8],[38,9,38,27],[38,28,38,36],[38,41,38,48],[38,49,38,52],[38,53,38,54],[38,55,38,60],[37,1,37,2],[37,3,37,8],[37,9,37,27],[37,28,37,36],[37,41,37,48],[37,49,37,52],[39,53,39,54],[39,55,39,60],[40,1,40,2],[40,3,40,8],[40,9,40,27],[40,28,40,36],[40,41,40,48],[40,49,40,52],[40,53,40,54],[40,55,40,60],[39,1,39,2],[39,3,39,8],[39,9,39,27],[39,28,39,36],[39,41,39,48],[39,49,39,52],[41,53,41,54],[41,55,41,60],[42,1,42,2],[42,3,42,8],[42,9,42,27],[42,28,42,36],[42,41,42,48],[42,49,42,52],[42,53,42,54],[42,55,42,60],[41,1,41,2],[41,3,41,8],[41,9,41,27],[41,28,41,36],[41,41,41,48],[41,49,41,52],[44,1,44,10],[44,11,44,21],[44,23,44,33],[44,34,44,44],[44,49,44,60],[47,1,47,10],[47,11,47,21],[47,23,47,33],[47,34,47,44],[47,49,47,60]]}
[]
[null,null,null,null,null,null,"บริษัท วโรปกรณ์ จำกัด (มหาชน)",null,null,null,null,null,null,null,null,null,null,null,null,null,null,null,null,null,null,null,null,null,null,null,null,null,null,null,"เล่มที่ :",null,null,null,null,null,null,null,null,null,null,null,null,null,null,null,null,"เลขที่ :",{"$f":"'ใบส่งคืนชาก P1'!$BA$2:$BH$2","v":"ENG-09-69-002"}]
[null,null,null,null,null,null,null,null,null,null,null,null,null,null,null,"ใบส่งคืนซากอะไหล่",null,null,null,null,null,null,null,null,null,null,null,null,null,null,null,null,null,null,null,null,null,null,null,null,null,null,null,null,null,null,null,null,null,null,null,"ฝ่ายที่ส่งคืนระบุ","(X-XX-XX-XXX)\n(ฝ่าย-เดือน-พ.ศ.-ลำดับ)"]
[null,"ส่งคืนอะไหล่",null,null,null,null,null,null,"o เสีย",null,null,null,null,null,"o ซ่อม/นำกลับมาใช้ใหม่, PR เลขที่ …………………….",null,null,null,null,null,null,null,null,null,null,null,null,null,null,null,null,null,null,null,null,null,null,"o ของดี",null,null,null,null,null,null,"o เคลมภายใน...............วัน"]
[null,"ชื่อผู้ส่งคืน",null,null,null,null,"Narongrit Ritthidej",null,null,null,null,null,null,null,null,null,null,null,null,null,null,null,null,null,null,"ฝ่าย/แผนก",null,null,"วิศวซ่อมบำรุง",null,null,null,null,null,null,null,null,null,null,null,null,null,null,null,null,null,"เบอร์โทรศัพท์ติดต่อ"]
[null,"เครื่องจักร",null,null,null,null,{"$f":"'ใบส่งคืนชาก P1'!$G$6:$S$6","v":"CTE6"},null,null,null,null,null,null,null,null,null,null,null,null,null,null,null,null,null,null,"ใบเบิกเลขที่",null,{"$f":"'ใบส่งคืนชาก P1'!$AB$6:$AM$6","v":26090002}]
[]
[null,"ลำดับ",null,"รหัสสินค้า",null,null,null,null,null,"ชื่ออะไหล่",null,null,null,null,null,null,null,null,null,null,null,null,null,null,null,null,null,null,"อาการที่เสีย",null,null,null,null,null,null,null,null,"ซาก",null,null,null,null,null,null,null,null,null,null,null,"จำนวนส่งคืน",null,null,null,null,null,"พื้นที่จัดเก็บ"]
[null,null,null,"(ติดป้ายชี้บ่งบนซากอะไหล่ทุกชนิด, หากอะไหล่ชิ้นเล็กให้บรรจุใส่ถุงก่อนส่งคืน)",null,null,null,null,null,null,null,null,null,null,null,null,null,null,null,null,null,null,null,null,null,null,null,null,null,null,null,null,null,null,null,null,null,"มี",null,"ไม่มี",null,null,null,null,null,null,null,null,null,null,null,null,null,"หน่วย"]
[null,9,null,{"$f":"TEXT(CC10,)","v":""},null,null,null,null,null,{"$f":"TEXT(CE10,)","v":""},null,null,null,null,null,null,null,null,null,null,null,null,null,null,null,null,null,null,null,null,null,null,null,null,null,null,null,null,null,null,null,null,null,null,null,null,null,null,null,{"$f":"IF(CF10=\"\",\"\",CF10)","v":""},null,null,null,{"$f":"TEXT(CG10,)","v":""},null,null,null,null,null,null,null,null,null,null,null,null,null,null,null,null,null,null,null,null,null,null,null,null,1,null,null,null,null,null,null,null,null,{"$f":"IF(AX10=\"\",FALSE,TRUE)","v":false},{"$f":"IF(AND(D10<>\"\",AX10=\"\"),TRUE,FALSE)","v":false},null,null,null,{"$f":"IF(D10<>\"\",1,0)","v":0}]
[null,10,null,{"$f":"TEXT(CC11,)","v":""},null,null,null,null,null,{"$f":"TEXT(CE11,)","v":""},null,null,null,null,null,null,null,null,null,null,null,null,null,null,null,null,null,null,null,null,null,null,null,null,null,null,null,null,null,null,null,null,null,null,null,null,null,null,null,{"$f":"IF(CF11=\"\",\"\",CF11)","v":""},null,null,null,{"$f":"TEXT(CG11,)","v":""},null,null,null,null,null,null,null,null,null,null,null,null,null,null,null,null,null,null,null,null,null,null,null,null,2,null,null,null,null,null,null,null,null,{"$f":"IF(AX11=\"\",FALSE,TRUE)","v":false},{"$f":"IF(AND(D11<>\"\",AX11=\"\"),TRUE,FALSE)","v":false},null,null,null,{"$f":"IF(D11<>\"\",1,0)","v":0}]
[null,11,null,"",null,null,null,null,null,"",null,null,null,null,null,null,null,null,null,null,null,null,null,null,null,null,null,null,null,null,null,null,null,null,null,null,null,null,null,null,null,null,null,null,null,null,null,null,null,{"$f":"IF(CF12=\"\",\"\",CF12)","v":""},null,null,null,"",null,null,null,null,null,null,null,null,null,null,null,null,null,null,null,null,null,null,null,null,null,null,null,null,3,null,null,null,null,null,null,null,null,false,false,null,null,null,0]
[null,12,null,"",null,null,null,null,null,"",null,null,null,null,null,null,null,null,null,null,null,null,null,null,null,null,null,null,null,null,null,null,null,null,null,null,null,null,null,null,null,null,null,null,null,null,null,null,null,"",null,null,null,"",null,null,null,null,null,null,null,null,null,null,null,null,null,null,null,null,null,null,null,null,null,null,null,null,4,null,null,null,null,null,null,null,null,false,false,null,null,null,0]
[null,13,null,"",null,null,null,null,null,"",null,null,null,null,null,null,null,null,null,null,null,null,null,null,null,null,null,null,null,null,null,null,null,null,null,null,null,null,null,null,null,null,null,null,null,null,null,null,null,"",null,null,null,"",null,null,null,null,null,null,null,null,null,null,null,null,null,null,null,null,null,null,null,null,null,null,null,null,5,null,null,null,null,null,null,null,null,false,false,null,null,null,0]
[null,14,null,"",null,null,null,null,null,"",null,null,null,null,null,null,null,null,null,null,null,null,null,null,null,null,null,null,null,null,null,null,null,null,null,null,null,null,null,null,null,null,null,null,null,null,null,null,null,"",null,null,null,"",null,null,null,null,null,null,null,null,null,null,null,null,null,null,null,null,null,null,null,null,null,null,null,null,6,null,null,null,null,null,null,null,null,false,false,null,null,null,0]
[null,15,null,"",null,null,null,null,null,"",null,null,null,null,null,null,null,null,null,null,null,null,null,null,null,null,null,null,null,null,null,null,null,null,null,null,null,null,null,null,null,null,null,null,null,null,null,null,null,"",null,null,null,"",null,null,null,null,null,null,null,null,null,null,null,null,null,null,null,null,null,null,null,null,null,null,null,null,7,null,null,null,null,null,null,null,null,false,false,null,null,null,0]
[null,16,null,"",null,null,null,null,null,"",null,null,null,null,null,null,null,null,null,null,null,null,null,null,null,null,null,null,null,null,null,null,null,null,null,null,null,null,null,null,null,null,null,null,null,null,null,null,null,"",null,null,null,"",null,null,null,null,null,null,null,null,null,null,null,null,null,null,null,null,null,null,null,null,null,null,null,null,8,null,null,null,null,null,null,null,null,false,false,null,null,null,0]
[]
[null,"ผู้ส่ง",null,null,null,null,null,null,null,null,null,"ผู้อนุมัติส่ง",null,null,null,null,null,null,null,null,null,null,null,"ผู้รับ",null,null,null,null,null,null,null,null,null,null,"ผู้อนุมัติรับ",null,null,null,null,null,null,null,null,null,null,null,null,null,null,"ผู้ตรวจสอบ",null,null,null,null,null,null,null,null,null,null,null,null,null,null,null,null,null,null,null,null,null,null,null,null,null,null,null,null,null,null,null,null,null,null,null,null,null,null,null,null,null,null,{"$f":"SUM(CO10:CO17)","v":0}]
[]
[]
[null,null,null,null,null,null,null,null,null,null,null,"(Leader, ผช., ผจก.)",null,null,null,null,null,null,null,null,null,null,null,"(พนักงานสโตร์)",null,null,null,null,null,null,null,null,null,null,"(หัวหน้าแผนกสโตร์)",null,null,null,null,null,null,null,null,null,null,null,null,null,null,"(บัญชี)"]
[null,"วันที่",null,null,null,null,null,null,null,null,null,"วันที่",null,null,null,null,null,null,null,null,null,null,null,"วันที่",null,null,null,null,null,null,null,null,null,null,"วันที่",null,null,null,null,null,null,null,null,null,null,null,null,null,null,"วันที่"]
[null,"FM-R-0006  REV.00"]
[]
[]
[]
[null,null,null,null,null,null,"บริษัท วโรปกรณ์ จำกัด (มหาชน)",null,null,null,null,null,null,null,null,null,null,null,null,null,null,null,null,null,null,null,null,null,null,null,null,null,null,null,"เล่มที่ :",null,null,null,null,null,null,null,null,null,null,null,null,null,null,null,null,"เลขที่ :",{"$f":"BA2","v":"ENG-09-69-002"},null,null,null,null,null,"=BG2"]
[null,null,null,null,null,null,null,null,null,null,null,null,null,null,null,"ใบส่งคืนซากอะไหล่",null,null,null,null,null,null,null,null,null,null,null,null,null,null,null,null,null,null,null,null,null,null,null,null,null,null,null,null,null,null,null,null,null,null,null,"ฝ่ายที่ส่งคืนระบุ","(X-XX-XX-XXX)\n(ฝ่าย-เดือน-พ.ศ.-ลำดับ)"]
[null,"ส่งคืนอะไหล่",null,null,null,null,null,null,"o เสีย",null,null,null,null,null,"o ซ่อม/นำกลับมาใช้ใหม่, PR เลขที่ …………………….",null,null,null,null,null,null,null,null,null,null,null,null,null,null,null,null,null,null,null,null,null,null,"o ของดี",null,null,null,null,null,null,"o เคลมภายใน...............วัน"]
[null,"ชื่อผู้ส่งคืน",null,null,null,null,{"$f":"G5","v":"Narongrit Ritthidej"},null,null,null,null,null,null,null,null,null,null,null,null,null,null,null,null,null,null,"ฝ่าย/แผนก",null,null,"วิศวซ่อมบำรุง",null,null,null,null,null,null,null,null,null,null,null,null,null,null,null,null,null,"เบอร์โทรศัพท์ติดต่อ"]
[null,"เครื่องจักร",null,null,null,null,{"$f":"G6","v":"CTE6"},null,null,null,null,null,null,null,null,null,null,null,null,null,null,null,null,null,null,"ใบเบิกเลขที่",null,{"$f":"AB6","v":26090002}]
[]
[null,"ลำดับ",null,"รหัสสินค้า",null,null,null,null,null,"ชื่ออะไหล่",null,null,null,null,null,null,null,null,null,null,null,null,null,null,null,null,null,null,"อาการที่เสีย",null,null,null,null,null,null,null,null,"ซาก",null,null,null,null,null,null,null,null,null,null,null,"จำนวนส่งคืน",null,null,null,null,null,"พื้นที่จัดเก็บ"]
[null,null,null,"(ติดป้ายชี้บ่งบนซากอะไหล่ทุกชนิด, หากอะไหล่ชิ้นเล็กให้บรรจุใส่ถุงก่อนส่งคืน)",null,null,null,null,null,null,null,null,null,null,null,null,null,null,null,null,null,null,null,null,null,null,null,null,null,null,null,null,null,null,null,null,null,"มี",null,"ไม่มี",null,null,null,null,null,null,null,null,null,null,null,null,null,"หน่วย"]
[null,{"$f":"B10","v":9},null,{"$f":"TEXT(D10,)","v":""},{"$f":"TEXT(D10,)","v":""},null,null,null,null,{"$f":"TEXT(J10,)","v":""},null,null,null,null,null,null,null,null,null,null,null,null,null,null,null,null,null,null,{"$f":"TEXT(AC10,)","v":""},null,null,null,null,null,null,null,null,null,null,null,null,{"$f":"TEXT(AP10,)","v":""},null,null,null,null,null,null,null,{"$f":"AX10","v":""},null,null,null,{"$f":"TEXT(BB10,)","v":""}]
[null,{"$f":"B11","v":10},null,{"$f":"TEXT(D11,)","v":""},{"$f":"TEXT(D11,)","v":""},null,null,null,null,{"$f":"TEXT(J11,)","v":""},null,null,null,null,null,null,null,null,null,null,null,null,null,null,null,null,null,null,{"$f":"TEXT(AC11,)","v":""},null,null,null,null,null,null,null,null,null,null,null,null,{"$f":"TEXT(AP11,)","v":""},null,null,null,null,null,null,null,{"$f":"AX11","v":""},null,null,null,{"$f":"TEXT(BB11,)","v":""}]
[null,11,null,"","",null,null,null,null,"",null,null,null,null,null,null,null,null,null,null,null,null,null,null,null,null,null,null,"",null,null,null,null,null,null,null,null,null,null,null,null,"",null,null,null,null,null,null,null,"",null,null,null,""]
[null,12,null,"","",null,null,null,null,"",null,null,null,null,null,null,null,null,null,null,null,null,null,null,null,null,null,null,"",null,null,null,null,null,null,null,null,null,null,null,null,"",null,null,null,null,null,null,null,"",null,null,null,""]
[null,13,null,"","",null,null,null,null,"",null,null,null,null,null,null,null,null,null,null,null,null,null,null,null,null,null,null,"",null,null,null,null,null,null,null,null,null,null,null,null,"",null,null,null,null,null,null,null,"",null,null,null,""]
[null,14,null,"","",null,null,null,null,"",null,null,null,null,null,null,null,null,null,null,null,null,null,null,null,null,null,null,"",null,null,null,null,null,null,null,null,null,null,null,null,"",null,null,null,null,null,null,null,"",null,null,null,""]
[null,15,null,"","",null,null,null,null,"",null,null,null,null,null,null,null,null,null,null,null,null,null,null,null,null,null,null,"",null,null,null,null,null,null,null,null,null,null,null,null,"",null,null,null,null,null,null,null,"",null,null,null,""]
[null,16,null,"","",null,null,null,null,"",null,null,null,null,null,null,null,null,null,null,null,null,null,null,null,null,null,null,"",null,null,null,null,null,null,null,null,null,null,null,null,"",null,null,null,null,null,null,null,"",null,null,null,""]
[]
[null,"ผู้ส่ง",null,null,null,null,null,null,null,null,null,"ผู้อนุมัติส่ง",null,null,null,null,null,null,null,null,null,null,null,"ผู้รับ",null,null,null,null,null,null,null,null,null,null,"ผู้อนุมัติรับ",null,null,null,null,null,null,null,null,null,null,null,null,null,null,"ผู้ตรวจสอบ"]
[]
[]
[null,null,null,null,null,null,null,null,null,null,null,"(Leader, ผช., ผจก.)",null,null,null,null,null,null,null,null,null,null,null,"(พนักงานสโตร์)",null,null,null,null,null,null,null,null,null,null,"(หัวหน้าแผนกสโตร์)",null,null,null,null,null,null,null,null,null,null,null,null,null,null,"(บัญชี)"]
[null,"วันที่",null,null,null,null,null,null,null,null,null,"วันที่",null,null,null,null,null,null,null,null,null,null,null,"วันที่",null,null,null,null,null,null,null,null,null,null,"วันที่",null,null,null,null,null,null,null,null,null,null,null,null,null,null,"วันที่"]
[null,"FM-R-0006  REV.00"]